fUST/lending_fUST_20250912
["ID","MTS","AMOUNT","RATE_DAILY","PERIOD"]
[385207166,1757685055922,-160.0,0.00014669,2]
[385207169,1757685055931,-160.0,0.00014669,2]
[385207170,1757685055941,-500.0,0.00014696,2]
[385207173,1757685055951,-500.0,0.00014696,2]
[385207175,1757685055961,-847.0429734,0.00014735,2]
[385207177,1757685055971,-160.0,0.00014735,2]
[385207179,1757685055980,-531.04384426,0.00014735,2]
[385207181,1757685055989,-233.13074058,0.00014735,2]
[385207182,1757685055999,-417.15472785,0.00014735,2]
[385207184,1757685056008,-1500.0,0.00014768,2]
[385207187,1757685056018,-500.0,0.00014768,2]
[385207189,1757685056027,-1001.75686912,0.00014768,2]
[385207190,1757685056036,-500.0,0.00014768,2]
[385207193,1757685056047,-1500.0,0.00014768,2]
[385207194,1757685056056,-1500.0,0.00014768,2]
[385207196,1757685056065,-824.83,0.00014783,2]
[385207199,1757685056075,-157.0,0.00014794,2]
[385207201,1757685056084,-500.0,0.00014794,2]
[385207203,1757685056094,-480.0,0.00014794,2]
[385207205,1757685056103,-480.0,0.00014794,2]
[385207207,1757685056113,-480.0,0.00014794,2]
[385207209,1757685056122,-480.0,0.00014794,2]
[385207211,1757685056131,-480.0,0.00014794,2]
[385207213,1757685056141,-480.0,0.00014794,2]
[385207215,1757685056151,-480.0,0.00014794,2]
[385207217,1757685056160,-480.0,0.00014794,2]
[385207219,1757685056170,-480.0,0.00014794,2]
[385207220,1757685056179,-480.0,0.00014794,2]
[385207222,1757685056188,-480.0,0.00014794,2]
[385207224,1757685056198,-480.0,0.00014794,2]
[385207227,1757685056211,-480.0,0.00014794,2]
[385207229,1757685056221,-480.0,0.00014794,2]
[385207230,1757685056230,-480.0,0.00014794,2]
[385207232,1757685056240,-480.0,0.00014794,2]
[385207235,1757685056249,-480.0,0.00014794,2]
[385207236,1757685056259,-480.0,0.00014794,2]
[385207239,1757685056269,-480.0,0.00014794,2]
[385207240,1757685056278,-275.24699304,0.00014794,2]
[385207243,1757685056288,-480.0,0.00014794,2]
[385207245,1757685056298,-480.0,0.00014794,2]
[385207247,1757685056307,-480.0,0.00014794,2]
[385207249,1757685056317,-480.0,0.00014794,2]
[385207251,1757685056327,-480.0,0.00014794,2]
[385207253,1757685056336,-480.0,0.00014794,2]
[385207255,1757685056345,-2116.72,0.00014794,2]
[385207257,1757685056355,-686.19,0.00014794,2]
[385207259,1757685056365,-2417.02,0.00014794,2]
[385207261,1757685056374,-480.0,0.00014794,2]
[385207263,1757685056384,-480.0,0.00014794,2]
[385207265,1757685056393,-480.0,0.00014794,2]
[385207267,1757685056403,-324.11930051,0.00014794,2]
[385207269,1757685056417,-480.0,0.00014794,2]
[385207271,1757685056432,-480.0,0.00014794,2]
[385207273,1757685056441,-480.0,0.00014794,2]
[385207275,1757685056451,-643.43,0.00014794,2]
[385207277,1757685056461,-1203.48,0.00014794,2]
[385207279,1757685056470,-480.0,0.00014794,2]
[385207281,1757685056480,-480.0,0.00014794,2]
[385207283,1757685056489,-480.0,0.00014794,2]
[385207285,1757685056499,-480.0,0.00014794,2]
[385207287,1757685056508,-480.0,0.00014794,2]
[385207289,1757685056518,-480.0,0.00014794,2]
[385207291,1757685056528,-480.0,0.00014794,2]
[385207293,1757685056537,-480.0,0.00014794,2]
[385207295,1757685056547,-480.0,0.00014794,2]
[385207297,1757685056560,-4526.32,0.00014794,2]
[385207299,1757685056569,-783.84,0.00014794,2]
[385207301,1757685056579,-480.0,0.00014794,2]
[385207303,1757685056588,-480.0,0.00014794,2]
[385207305,1757685056597,-480.0,0.00014794,2]
[385207307,1757685056606,-480.0,0.00014794,2]
[385207309,1757685056617,-521.83,0.00014794,2]
[385207311,1757685056626,-480.0,0.00014794,2]
[385207313,1757685056636,-480.0,0.00014794,2]
[385207315,1757685056646,-480.0,0.00014794,2]
[385207317,1757685056655,-480.0,0.00014794,2]
[385207319,1757685056664,-480.0,0.00014794,2]
[385207321,1757685056675,-480.0,0.00014794,2]
[385207323,1757685056685,-1998.84,0.00014794,2]
[385207325,1757685056695,-480.0,0.00014794,2]
[385207327,1757685056704,-480.0,0.00014794,2]
[385207329,1757685056714,-480.0,0.00014794,2]
[385207331,1757685056723,-480.0,0.00014794,2]
[385207333,1757685056732,-480.0,0.00014794,2]
[385207335,1757685056742,-480.0,0.00014794,2]
[385207337,1757685056752,-480.0,0.00014794,2]
[385207339,1757685056762,-480.0,0.00014794,2]
[385207341,1757685056771,-480.0,0.00014794,2]
[385207343,1757685056781,-480.0,0.00014794,2]
[385207345,1757685056790,-260.67806508,0.000148,2]
[385207347,1757685056800,-1000.0,0.00014841,2]
[385207349,1757685056809,-10585.41552735,0.00014883,2]
[385207351,1757685056818,-151.0,0.000149,2]
[385207353,1757685056828,-420.0,0.00014901,2]
[385207355,1757685056837,-480.0,0.00014902,2]
[385207357,1757685056847,-1000.0,0.00015004,2]
[385207359,1757685056857,-174.93562152,0.00015068,2]
[385207361,1757685056866,-332.5,0.00015068,2]
[385207363,1757685056876,-480.0,0.00015068,2]
[385207365,1757685056885,-480.0,0.00015068,2]
[385207367,1757685056895,-480.0,0.00015068,2]
[385207369,1757685056904,-480.0,0.00015068,2]
[385207371,1757685056914,-480.0,0.00015068,2]
[385207373,1757685056923,-493.20055727,0.00015068,2]
[385207375,1757685056932,-272.54448609,0.00015068,2]
[385207377,1757685056942,-480.0,0.00015068,2]
[385207387,1757685057032,-480.0,0.00015068,2]
[385207389,1757685057043,-480.0,0.00015068,2]
[385207391,1757685057052,-480.0,0.00015068,2]
[385207393,1757685057062,-480.0,0.00015068,2]
[385207395,1757685057071,-480.0,0.00015068,2]
[385207397,1757685057080,-161.5561463,0.00015068,2]
[385207399,1757685057089,-480.0,0.00015068,2]
[385207401,1757685057098,-480.0,0.00015068,2]
[385207403,1757685057107,-480.0,0.00015068,2]
[385207405,1757685057116,-480.0,0.00015068,2]
[385207407,1757685057126,-510.3548356,0.00015068,2]
[385207409,1757685057135,-480.0,0.00015068,2]
[385207411,1757685057145,-2116.72,0.00015068,2]
[385207413,1757685057154,-686.19,0.00015068,2]
[385207415,1757685057163,-2417.02,0.00015068,2]
[385207417,1757685057173,-480.0,0.00015068,2]
[385207419,1757685057182,-480.0,0.00015068,2]
[385207421,1757685057192,-480.0,0.00015068,2]
[385207423,1757685057201,-480.0,0.00015068,2]
[385207425,1757685057210,-480.0,0.00015068,2]
[385207427,1757685057219,-480.0,0.00015068,2]
[385207429,1757685057230,-643.43,0.00015068,2]
[385207431,1757685057240,-1203.48,0.00015068,2]
[385207433,1757685057249,-480.0,0.00015068,2]
[385207435,1757685057259,-480.0,0.00015068,2]
[385207437,1757685057268,-480.0,0.00015068,2]
[385207439,1757685057278,-480.0,0.00015068,2]
[385207441,1757685057288,-480.0,0.00015068,2]
[385207443,1757685057298,-163.70054727,0.00015068,2]
[385207445,1757685057307,-480.0,0.00015068,2]
[385207447,1757685057317,-480.0,0.00015068,2]
[385207449,1757685057328,-4526.32,0.00015068,2]
[385207451,1757685057337,-783.84,0.00015068,2]
[385207453,1757685057346,-480.0,0.00015068,2]
[385207455,1757685057356,-365.72,0.00015068,2]
[385207457,1757685057366,-480.0,0.00015068,2]
[385207458,1757685057375,-480.0,0.00015068,2]
[385207460,1757685057384,-521.83,0.00015068,2]
[385207462,1757685057394,-480.0,0.00015068,2]
[385207464,1757685057404,-322.50145889,0.00015068,2]
[385207466,1757685057413,-480.0,0.00015068,2]
[385207468,1757685057423,-208.87577317,0.00015068,2]
[385207470,1757685057433,-317.08967701,0.00015068,2]
[385207472,1757685057443,-480.0,0.00015068,2]
[385207474,1757685057452,-1998.84,0.00015068,2]
[385207476,1757685057461,-480.0,0.00015068,2]
[385207478,1757685057470,-480.0,0.00015068,2]
[385207480,1757685057479,-480.0,0.00015068,2]
[385207482,1757685057489,-480.0,0.00015068,2]
[385207484,1757685057498,-480.0,0.00015068,2]
[385207486,1757685057507,-480.0,0.00015068,2]
[385207488,1757685057517,-480.0,0.00015068,2]
[385207490,1757685057526,-480.0,0.00015068,2]
[385207492,1757685057536,-480.0,0.00015068,2]
[385207494,1757685057545,-480.0,0.00015068,2]
[385207496,1757685057559,-1500.0,0.00015068,2]
[385207498,1757685057568,-263.323274,0.00015068,2]
[385207500,1757685057577,-1060.99350229,0.00015156,2]
[385207502,1757685057586,-500.71974058,0.00015157,2]
[385207504,1757685057595,-496.4159279,0.00015163,2]
[385207506,1757685057605,-1001.97059172,0.00015244,2]
[385207508,1757685057615,-151.0,0.000153,2]
[385207510,1757685057624,-480.0,0.00015342,2]
[385207512,1757685057634,-480.0,0.00015342,2]
[385207514,1757685057644,-480.0,0.00015342,2]
[385207516,1757685057653,-480.0,0.00015342,2]
[385207518,1757685057663,-480.0,0.00015342,2]
[385207519,1757685057672,-480.0,0.00015342,2]
[385207521,1757685057682,-331.39,0.00015342,2]
[385207523,1757685057692,-480.0,0.00015342,2]
[385207525,1757685057702,-480.0,0.00015342,2]
[385207527,1757685057710,-480.0,0.00015342,2]
[385207529,1757685057720,-480.0,0.00015342,2]
[385207531,1757685057733,-480.0,0.00015342,2]
[385207533,1757685057742,-480.0,0.00015342,2]
[385207535,1757685057752,-480.0,0.00015342,2]
[385207537,1757685057761,-2116.72,0.00015342,2]
[385207539,1757685057772,-686.19,0.00015342,2]
[385207541,1757685057781,-2417.02,0.00015342,2]
[385207543,1757685057791,-480.0,0.00015342,2]
[385207545,1757685057801,-166.60635546,0.00015342,2]
[385207547,1757685057811,-480.0,0.00015342,2]
[385207549,1757685057821,-480.0,0.00015342,2]
[385207551,1757685057832,-480.0,0.00015342,2]
[385207553,1757685057842,-643.43,0.00015342,2]
[385207555,1757685057851,-1203.48,0.00015342,2]
[385207557,1757685057861,-480.0,0.00015342,2]
[385207559,1757685057870,-480.0,0.00015342,2]
[385207561,1757685057880,-480.0,0.00015342,2]
[385207563,1757685057889,-480.0,0.00015342,2]
[385207565,1757685057898,-480.0,0.00015342,2]
[385207567,1757685057907,-480.0,0.00015342,2]
[385207569,1757685057917,-480.0,0.00015342,2]
[385207571,1757685057926,-4526.32,0.00015342,2]
[385207573,1757685057937,-783.84,0.00015342,2]
[385207575,1757685057946,-480.0,0.00015342,2]
[385207577,1757685057956,-480.0,0.00015342,2]
[385207579,1757685057965,-521.83,0.00015342,2]
[385207581,1757685057975,-480.0,0.00015342,2]
[385207583,1757685057984,-480.0,0.00015342,2]
[385207585,1757685057993,-480.0,0.00015342,2]
[385207587,1757685058002,-1998.84,0.00015342,2]
[385207589,1757685058012,-480.0,0.00015342,2]
[385207591,1757685058022,-480.0,0.00015342,2]
[385207593,1757685058032,-480.0,0.00015342,2]
[385207595,1757685058042,-480.0,0.00015342,2]
[385207597,1757685058052,-480.0,0.00015342,2]
[385207599,1757685058061,-480.0,0.00015342,2]
[385207601,1757685058070,-480.0,0.00015342,2]
[385207603,1757685058079,-225.74926341,0.00015342,2]
[385207605,1757685058089,-480.0,0.00015342,2]
[385207607,1757685058098,-480.0,0.00015342,2]
[385207609,1757685058107,-720.0,0.00015368,2]
[385207611,1757685058116,-1500.0,0.00015389,2]
[385207613,1757685058126,-151.0,0.000156,2]
[385207614,1757685058135,-480.0,0.00015616,2]
[385207616,1757685058144,-480.0,0.00015616,2]
[385207618,1757685058153,-480.0,0.00015616,2]
[385207620,1757685058163,-480.0,0.00015616,2]
[385207622,1757685058172,-480.0,0.00015616,2]
[385207624,1757685058181,-151.0,0.00015616,2]
[385207626,1757685058192,-151.0,0.00015616,2]
[385207628,1757685058201,-151.0,0.00015616,2]
[385207630,1757685058210,-480.0,0.00015616,2]
[385207632,1757685058219,-151.0,0.00015616,2]
[385207634,1757685058228,-151.0,0.00015616,2]
[385207636,1757685058238,-151.0,0.00015616,2]
[385207638,1757685058247,-151.0,0.00015616,2]
[385207640,1757685058256,-151.0,0.00015616,2]
[385207642,1757685058265,-154.0479,0.00015616,2]
[385207644,1757685058275,-151.0,0.00015616,2]
[385207646,1757685058284,-151.0,0.00015616,2]
[385207648,1757685058293,-151.0,0.00015616,2]
[385207650,1757685058302,-151.0,0.00015616,2]
[385207651,1757685058311,-151.0,0.00015616,2]
[385207653,1757685058322,-480.0,0.00015616,2]
[385207655,1757685058331,-480.0,0.00015616,2]
[385207657,1757685058341,-480.0,0.00015616,2]
[385207659,1757685058351,-480.0,0.00015616,2]
[385207661,1757685058361,-480.0,0.00015616,2]
[385207663,1757685058373,-480.0,0.00015616,2]
[385207665,1757685058382,-480.0,0.00015616,2]
[385207667,1757685058391,-2116.72,0.00015616,2]
[385207669,1757685058400,-686.19,0.00015616,2]
[385207671,1757685058410,-2417.02,0.00015616,2]
[385207673,1757685058419,-480.0,0.00015616,2]
[385207675,1757685058428,-480.0,0.00015616,2]
[385207677,1757685058437,-480.0,0.00015616,2]
[385207679,1757685058448,-480.0,0.00015616,2]
[385207681,1757685058457,-643.43,0.00015616,2]
[385207683,1757685058466,-1203.48,0.00015616,2]
[385207685,1757685058475,-480.0,0.00015616,2]
[385207687,1757685058484,-480.0,0.00015616,2]
[385207689,1757685058494,-480.0,0.00015616,2]
[385207691,1757685058503,-480.0,0.00015616,2]
[385207693,1757685058512,-480.0,0.00015616,2]
[385207695,1757685058521,-480.0,0.00015616,2]
[385207697,1757685058531,-480.0,0.00015616,2]
[385207698,1757685058540,-4526.32,0.00015616,2]
[385207700,1757685058553,-783.84,0.00015616,2]
[385207702,1757685058563,-480.0,0.00015616,2]
[385207704,1757685058572,-480.0,0.00015616,2]
[385207706,1757685058581,-521.83,0.00015616,2]
[385207708,1757685058591,-480.0,0.00015616,2]
[385207710,1757685058600,-480.0,0.00015616,2]
[385207712,1757685058609,-480.0,0.00015616,2]
[385207715,1757685058620,-1998.84,0.00015616,2]
[385207716,1757685058630,-480.0,0.00015616,2]
[385207718,1757685058640,-480.0,0.00015616,2]
[385207720,1757685058649,-480.0,0.00015616,2]
[385207722,1757685058659,-480.0,0.00015616,2]
[385207733,1757685058747,-480.0,0.00015616,2]
[385207735,1757685058757,-480.0,0.00015616,2]
[385207737,1757685058767,-480.0,0.00015616,2]
[385207738,1757685058776,-480.0,0.00015616,2]
[385207740,1757685058785,-480.0,0.00015616,2]
[385207742,1757685058795,-2000.0,0.00015616,2]
[385207744,1757685058804,-480.0,0.0001589,2]
[385207746,1757685058813,-480.0,0.0001589,2]
[385207748,1757685058823,-480.0,0.0001589,2]
[385207750,1757685058832,-480.0,0.0001589,2]
[385207752,1757685058841,-480.0,0.0001589,2]
[385207754,1757685058850,-480.0,0.0001589,2]
[385207756,1757685058859,-480.0,0.0001589,2]
[385207758,1757685058869,-480.0,0.0001589,2]
[385207759,1757685058878,-480.0,0.0001589,2]
[385207760,1757685058887,-480.0,0.0001589,2]
[385207761,1757685058897,-480.0,0.0001589,2]
[385207762,1757685058907,-480.0,0.0001589,2]
[385207763,1757685058916,-480.0,0.0001589,2]
[385207764,1757685058926,-2116.72,0.0001589,2]
[385207765,1757685058935,-686.19,0.0001589,2]
[385207766,1757685058945,-2417.02,0.0001589,2]
[385207767,1757685058955,-480.0,0.0001589,2]
[385207768,1757685058965,-560.32171537,0.0001589,2]
[385207769,1757685058975,-480.0,0.0001589,2]
[385207770,1757685058985,-194.16379098,0.0001589,2]
[385207771,1757685058995,-643.43,0.0001589,2]
[385207772,1757685059004,-1203.48,0.0001589,2]
[385207773,1757685059013,-480.0,0.0001589,2]
[385207774,1757685059023,-480.0,0.0001589,2]
[385207775,1757685059031,-480.0,0.0001589,2]
[385207776,1757685059040,-480.0,0.0001589,2]
[385207777,1757685059050,-480.0,0.0001589,2]
[385207778,1757685059059,-480.39649784,0.0001589,2]
[385207779,1757685059068,-4526.32,0.0001589,2]
[385207780,1757685059077,-783.84,0.0001589,2]
[385207781,1757685059086,-480.0,0.0001589,2]
[385207783,1757685059096,-480.0,0.0001589,2]
[385207784,1757685059105,-521.83,0.0001589,2]
[385207786,1757685059115,-480.0,0.0001589,2]
[385207788,1757685059124,-480.0,0.0001589,2]
[385207790,1757685059133,-480.0,0.0001589,2]
[385207792,1757685059143,-1998.84,0.0001589,2]
[385207794,1757685059152,-480.0,0.0001589,2]
[385207796,1757685059161,-480.0,0.0001589,2]
[385207798,1757685059171,-480.0,0.0001589,2]
[385207800,1757685059180,-480.0,0.0001589,2]
[385207802,1757685059189,-480.0,0.0001589,2]
[385207804,1757685059199,-480.0,0.0001589,2]
[385207806,1757685059208,-480.0,0.0001589,2]
[385207808,1757685059217,-480.0,0.0001589,2]
[385207810,1757685059227,-480.0,0.0001589,2]
[385207812,1757685059237,-151.0,0.000159,2]
[385207814,1757685059246,-2000.0,0.00015937,2]
[385207816,1757685059255,-1060.99350229,0.00015983,2]
[385207818,1757685059264,-480.0,0.00016164,2]
[385207820,1757685059273,-480.0,0.00016164,2]
[385207822,1757685059283,-480.0,0.00016164,2]
[385207824,1757685059292,-480.0,0.00016164,2]
[385207826,1757685059301,-480.0,0.00016164,2]
[385207828,1757685059310,-196.07322629,0.00016164,2]
[385207830,1757685059319,-400.41124496,0.00016164,2]
[385207832,1757685059329,-480.0,0.00016164,2]
[385207834,1757685059338,-480.0,0.00016164,2]
[385207836,1757685059347,-480.0,0.00016164,2]
[385207838,1757685059357,-480.0,0.00016164,2]
[385207840,1757685059366,-513.14133461,0.00016164,2]
[385207842,1757685059375,-480.0,0.00016164,2]
[385207844,1757685059384,-2116.72,0.00016164,2]
[385207845,1757685059393,-686.19,0.00016164,2]
[385207847,1757685059402,-2417.02,0.00016164,2]
[385207849,1757685059412,-480.0,0.00016164,2]
[385207852,1757685059422,-480.0,0.00016164,2]
[385207854,1757685059433,-643.43,0.00016164,2]
[385207856,1757685059444,-1203.48,0.00016164,2]
[385207858,1757685059454,-480.0,0.00016164,2]
[385207860,1757685059464,-480.0,0.00016164,2]
[385207862,1757685059474,-234.85985815,0.00016164,2]
[385207863,1757685059484,-480.0,0.00016164,2]
[385207865,1757685059494,-480.0,0.00016164,2]
[385207868,1757685059504,-4526.32,0.00016164,2]
[385207869,1757685059513,-783.84,0.00016164,2]
[385207872,1757685059523,-480.0,0.00016164,2]
[385207873,1757685059532,-480.0,0.00016164,2]
[385207875,1757685059541,-521.83,0.00016164,2]
[385207877,1757685059555,-480.0,0.00016164,2]
[385207879,1757685059565,-480.0,0.00016164,2]
[385207881,1757685059573,-1998.84,0.00016164,2]
[385207883,1757685059583,-480.0,0.00016164,2]
[385207885,1757685059592,-480.0,0.00016164,2]
[385207887,1757685059602,-480.0,0.00016164,2]
[385207889,1757685059612,-480.0,0.00016164,2]
[385207891,1757685059621,-480.0,0.00016164,2]
[385207893,1757685059634,-480.0,0.00016164,2]
[385207895,1757685059643,-480.0,0.00016164,2]
[385207897,1757685059653,-480.0,0.00016164,2]
[385207899,1757685059662,-480.0,0.00016164,2]
[385207901,1757685059672,-2500.0,0.00016164,2]
[385207903,1757685059681,-151.0,0.000162,2]
[385207905,1757685059692,-587.0,0.00016332,2]
[385207907,1757685059701,-250.0,0.00016378,2]
[385207909,1757685059710,-155.462,0.00016436,2]
[385207911,1757685059720,-155.0,0.00016436,2]
[385207913,1757685059730,-500.0,0.00016438,2]
[385207915,1757685059739,-500.0,0.00016438,2]
[385207917,1757685059748,-500.0,0.00016438,2]
[385207918,1757685059757,-500.0,0.00016438,2]
[385207919,1757685059767,-500.0,0.00016438,2]
[385207920,1757685059776,-500.0,0.00016438,2]
[385207921,1757685059785,-500.0,0.00016438,2]
[385207922,1757685059796,-500.0,0.00016438,2]
[385207923,1757685059805,-500.0,0.00016438,2]
[385207924,1757685059815,-310.2831703,0.00016438,2]
[385207925,1757685059824,-480.0,0.00016438,2]
[385207926,1757685059834,-480.0,0.00016438,2]
[385207927,1757685059843,-480.0,0.00016438,2]
[385207928,1757685059853,-480.0,0.00016438,2]
[385207929,1757685059862,-480.0,0.00016438,2]
[385207930,1757685059871,-480.0,0.00016438,2]
[385207931,1757685059881,-176.03,0.00016438,2]
[385207932,1757685059890,-415.86000148,0.00016438,2]
[385207934,1757685059899,-480.0,0.00016438,2]
[385207936,1757685059908,-348.36452551,0.00016438,2]
[385207938,1757685059917,-2116.72,0.00016438,2]
[385207939,1757685059927,-686.19,0.00016438,2]
[385207940,1757685059937,-2417.02,0.00016438,2]
[385207942,1757685059947,-480.0,0.00016438,2]
[385207944,1757685059956,-480.0,0.00016438,2]
[385207946,1757685059965,-643.43,0.00016438,2]
[385207948,1757685059975,-1203.48,0.00016438,2]
[385207950,1757685059984,-480.0,0.00016438,2]
[385207952,1757685059993,-480.0,0.00016438,2]
[385207954,1757685060002,-480.0,0.00016438,2]
[385207956,1757685060012,-480.0,0.00016438,2]
[385207958,1757685060022,-4526.32,0.00016438,2]
[385207960,1757685060031,-783.84,0.00016438,2]
[385207962,1757685060042,-480.0,0.00016438,2]
[385207964,1757685060052,-480.0,0.00016438,2]
[385207966,1757685060062,-521.83,0.00016438,2]
[385207968,1757685060072,-480.0,0.00016438,2]
[385207970,1757685060081,-480.0,0.00016438,2]
[385207972,1757685060090,-1998.84,0.00016438,2]
[385207974,1757685060100,-480.0,0.00016438,2]
[385207976,1757685060109,-480.0,0.00016438,2]
[385207978,1757685060119,-480.0,0.00016438,2]
[385207980,1757685060127,-480.0,0.00016438,2]
[385207982,1757685060137,-618.82501585,0.00016438,2]
[385207984,1757685060146,-480.0,0.00016438,2]
[385207986,1757685060155,-480.0,0.00016438,2]
[385207988,1757685060164,-480.0,0.00016438,2]
[385207990,1757685060174,-480.0,0.00016438,2]
[385207992,1757685060184,-2500.0,0.00016485,2]
[385207994,1757685060194,-151.0,0.000165,2]
[385207996,1757685060203,-6905.56779699,0.00016563,2]
[385207998,1757685060213,-155.0,0.00016574,2]
[385208000,1757685060222,-151.0,0.000166,2]
[385208007,1757685060232,-4095.23683762,0.00016612,2]
[385208008,1757685060315,-480.0,0.00016712,2]
[385208009,1757685060325,-480.0,0.00016712,2]
[385208010,1757685060334,-480.0,0.00016712,2]
[385208011,1757685060343,-480.0,0.00016712,2]
[385208012,1757685060353,-480.0,0.00016712,2]
[385208013,1757685060362,-151.0,0.00016712,2]
[385208014,1757685060372,-151.0,0.00016712,2]
[385208015,1757685060381,-151.0,0.00016712,2]
[385208016,1757685060390,-151.0,0.00016712,2]
[385208017,1757685060400,-151.0,0.00016712,2]
[385208018,1757685060409,-151.0,0.00016712,2]
[385208019,1757685060419,-151.0,0.00016712,2]
[385208020,1757685060428,-151.0,0.00016712,2]
[385208021,1757685060438,-151.0,0.00016712,2]
[385208022,1757685060448,-480.0,0.00016712,2]
[385208023,1757685060458,-480.0,0.00016712,2]
[385208024,1757685060467,-2116.72,0.00016712,2]
[385208025,1757685060476,-686.19,0.00016712,2]
[385208026,1757685060486,-2417.02,0.00016712,2]
[385208027,1757685060496,-480.0,0.00016712,2]
[385208028,1757685060506,-480.0,0.00016712,2]
[385208030,1757685060516,-643.43,0.00016712,2]
[385208031,1757685060525,-1203.48,0.00016712,2]
[385208032,1757685060535,-480.0,0.00016712,2]
[385208033,1757685060544,-480.0,0.00016712,2]
[385208034,1757685060555,-480.0,0.00016712,2]
[385208036,1757685060564,-480.0,0.00016712,2]
[385208038,1757685060574,-4526.32,0.00016712,2]
[385208040,1757685060584,-783.84,0.00016712,2]
[385208042,1757685060593,-480.0,0.00016712,2]
[385208044,1757685060603,-480.0,0.00016712,2]
[385208045,1757685060612,-521.83,0.00016712,2]
[385208046,1757685060622,-480.0,0.00016712,2]
[385208047,1757685060631,-480.0,0.00016712,2]
[385208048,1757685060641,-1998.84,0.00016712,2]
[385208049,1757685060650,-480.0,0.00016712,2]
[385208050,1757685060660,-480.0,0.00016712,2]
[385208051,1757685060669,-480.0,0.00016712,2]
[385208052,1757685060678,-480.0,0.00016712,2]
[385208053,1757685060687,-512.56194686,0.00016712,2]
[385208054,1757685060695,-480.0,0.00016712,2]
[385208055,1757685060704,-480.0,0.00016712,2]
[385208056,1757685060714,-480.0,0.00016712,2]
[385208057,1757685060723,-3000.0,0.00016712,2]
[385208058,1757685060733,-1060.99350229,0.00016811,2]
[385208060,1757685060742,-151.0,0.000169,2]
[385208062,1757685060751,-864.0,0.00016905,2]
[385208063,1757685060761,-35718.7796253,0.00016911,2]
[385208065,1757685060770,-43482.7750424,0.00016911,2]
[385208067,1757685060780,-480.0,0.00016986,2]
[385208069,1757685060790,-480.0,0.00016986,2]
[385208071,1757685060799,-480.0,0.00016986,2]
[385208073,1757685060809,-480.0,0.00016986,2]
[385208075,1757685060819,-480.0,0.00016986,2]
[385208077,1757685060828,-480.0,0.00016986,2]
[385208079,1757685060840,-383.59,0.00016986,2]
[385208081,1757685060849,-2116.72,0.00016986,2]
[385208083,1757685060859,-686.19,0.00016986,2]
[385208085,1757685060868,-480.0,0.00016986,2]
[385208087,1757685060878,-2417.02,0.00016986,2]
[385208089,1757685060887,-480.0,0.00016986,2]
[385208091,1757685060898,-643.43,0.00016986,2]
[385208093,1757685060907,-1203.48,0.00016986,2]
[385208095,1757685060916,-480.0,0.00016986,2]
[385208097,1757685060925,-480.0,0.00016986,2]
[385208099,1757685060935,-480.0,0.00016986,2]